fUSD/lending_fUSD_20240317
["ID","MTS","AMOUNT","RATE_DAILY","PERIOD"]
[319293965,1710641466969,-151.0,0.00015498,2]
[319293966,1710641466979,-151.0,0.00015498,2]
[319293967,1710641466988,-151.0,0.00015498,2]
[319293968,1710641466997,-151.0,0.00015498,2]
[319293969,1710641467007,-151.0,0.00015498,2]
[319293970,1710641467016,-151.0,0.00015498,2]
[319293971,1710641467025,-151.0,0.00015498,2]
[319293972,1710641467035,-151.0,0.00015498,2]
[319293973,1710641467044,-151.581057,0.00015498,2]
[319293974,1710641467053,-151.323481,0.00015498,2]
[319293975,1710641467063,-151.921896,0.00015498,2]
[319293976,1710641467072,-151.0,0.00015498,2]
[319293977,1710641467082,-151.0,0.00015498,2]
[319293978,1710641467092,-151.0,0.00015498,2]
[319293979,1710641467101,-151.0,0.00015498,2]
[319293980,1710641467110,-151.0,0.00015498,2]
[319293981,1710641467120,-151.0,0.00015498,2]
[319293982,1710641467129,-162.553292,0.00015498,2]
[319293983,1710641467138,-162.553292,0.00015498,2]
[319293984,1710641467148,-151.0,0.00015498,2]
[319293985,1710641467157,-151.0,0.00015498,2]
[319293986,1710641467167,-151.0,0.00015498,2]
[319293987,1710641467176,-151.0,0.00015498,2]
[319293988,1710641467186,-151.0,0.00015498,2]
[319293989,1710641467198,-201.091497,0.00015498,2]
[319293990,1710641467208,-201.091497,0.00015498,2]
[319293991,1710641467217,-151.0,0.00015498,2]
[319293992,1710641467227,-151.0,0.00015498,2]
[319293993,1710641467236,-151.0,0.00015498,2]
[319293994,1710641467247,-254.261093,0.00015498,2]
[319293995,1710641467257,-254.261093,0.00015498,2]
[319293996,1710641467266,-154.071438,0.00015498,2]
[319293997,1710641467275,-1909.813246,0.00015498,2]
[319293998,1710641467284,-1909.813246,0.00015498,2]
[319293999,1710641467295,-151.0,0.00015498,2]
[319294000,1710641467305,-314.08693457,0.00015499,5]
[319294001,1710641467315,-314.08693457,0.00015499,5]
[319294002,1710641467324,-408.07543192,0.00015499,5]
[319294003,1710641467334,-1000.0,0.00015499,2]
[319294004,1710641467344,-1006.0094,0.00015499,2]
[319294005,1710641467353,-1629.88203126,0.00015499,2]
[319294006,1710641467362,-151.23922094,0.00015499,2]
[319294007,1710641467372,-1000.0,0.00015499,2]
[319294008,1710641467382,-1000.0,0.00015499,2]
[319294009,1710641467392,-2290.88842714,0.00015499,2]
[319294010,1710641467402,-1000.0,0.00015499,2]
[319294011,1710641467412,-1000.0,0.00015499,2]
[319294012,1710641467421,-150.0,0.00015499,2]
[319294013,1710641467430,-150.0,0.00015499,2]
[319294014,1710641467439,-150.0,0.00015499,2]
[319294015,1710641467451,-150.0,0.00015499,2]
[319294016,1710641467460,-150.0,0.00015499,2]
[319294017,1710641467470,-150.0,0.00015499,2]
[319294018,1710641467479,-150.0,0.00015499,2]
[319294019,1710641467488,-150.0,0.00015499,2]
[319294020,1710641467497,-150.0,0.00015499,2]
[319294021,1710641467506,-150.0,0.00015499,2]
[319294022,1710641467516,-150.0,0.00015499,2]
[319294023,1710641467525,-150.0,0.00015499,2]
[319294024,1710641467535,-150.0,0.00015499,2]
[319294025,1710641467544,-150.0,0.00015499,2]
[319294026,1710641467553,-150.0,0.00015499,2]
[319294027,1710641467562,-150.0,0.00015499,2]
[319294028,1710641467572,-150.0,0.00015499,2]
[319294029,1710641467581,-150.0,0.00015499,2]
[319294030,1710641467590,-150.0,0.00015499,2]
[319294031,1710641467600,-150.0,0.00015499,2]
[319294032,1710641467609,-150.0,0.00015499,2]
[319294033,1710641467618,-150.0,0.00015499,2]
[319294034,1710641467628,-214.14651777,0.00015499,2]
[319294035,1710641467637,-706.21299389,0.000155,3]
[319294036,1710641467646,-403330.37075475,0.000155,2]
[319294037,1710641467666,-2483.74701608,0.000155,2]
[319294038,1710641467677,-3897.80000002,0.000155,2]
[319294039,1710641467688,-1012.42491389,0.000155,2]
[319294040,1710641467739,-500.0,0.00015342,2]
[319294041,1710641467749,-847.29,0.00015342,2]
[319294042,1710641467758,-219.69099989,0.000155,2]
[319294043,1710641467769,-364.0062877,0.000155,2]
[319294044,1710641468089,-500.0,0.00015342,2]
[319294045,1710641468100,-847.29,0.00015342,2]
[319294046,1710641468109,-500.0,0.00015342,2]
[319294047,1710641468119,-847.29,0.00015342,2]
[319294048,1710641468129,-500.0,0.00015342,2]
[319294049,1710641468138,-500.0,0.00015342,2]
[319294050,1710641468148,-847.29,0.00015342,2]
[319294051,1710641468158,-502.35725447,0.00015342,2]
[319294052,1710641468168,-500.0,0.00015342,2]
[319294053,1710641468178,-500.0,0.00015342,2]
[319294054,1710641468187,-500.0,0.00015342,2]
[319294055,1710641468201,-500.0,0.00015342,2]
[319294056,1710641468210,-517.99100454,0.00015342,2]
[319294057,1710641468220,-500.0,0.00015342,2]
[319294058,1710641468230,-500.0,0.00015398,2]
[319294059,1710641468240,-847.29,0.00015399,2]
[319294060,1710641468249,-521.87944224,0.00015477,2]
[319294061,1710641468259,-847.29,0.00015478,2]
[319294062,1710641468269,-847.29,0.00015479,2]
[319294063,1710641468278,-847.29,0.00015479,2]
[319294064,1710641468288,-151.0,0.00015497,2]
[319294065,1710641468301,-151.0,0.00015498,2]
[319294066,1710641468311,-1617365.15972349,0.000155,2]
[319294067,1710641468320,-155.0,0.000155,2]
[319294068,1710641468331,-10741970.07537326,0.000155,2]
[319294069,1710641468744,-150.97332357,0.000151,2]
[319294070,1710641468753,-188.32716959,0.00015342,2]
[319294071,1710641468780,-311.67283041,0.00015342,2]
[319294072,1710641468790,-500.0,0.00015342,2]
[319294073,1710641468800,-500.0,0.00015342,2]
[319294074,1710641468811,-500.0,0.00015342,2]
[319294075,1710641468822,-500.0,0.00015342,2]
[319294076,1710641468832,-500.0,0.00015342,2]
[319294077,1710641468841,-500.0,0.00015342,2]
[319294078,1710641468850,-171.97,0.00015342,2]
[319294079,1710641468860,-391.36416408,0.00015342,2]
[319294080,1710641468870,-500.0,0.00015342,2]
[319294081,1710641468880,-500.0,0.00015342,2]
[319294082,1710641468890,-500.0,0.00015342,2]
[319294083,1710641468900,-500.0,0.00015342,2]
[319294084,1710641468910,-242.92255097,0.00015342,2]
[319294085,1710641468940,-257.07744903,0.00015342,2]
[319294086,1710641468951,-500.0,0.00015342,2]
[319294087,1710641468961,-500.0,0.00015342,2]
[319294088,1710641468971,-469.56,0.00015342,2]
[319294089,1710641468981,-500.0,0.00015342,2]
[319294090,1710641468991,-500.0,0.00015342,2]
[319294091,1710641469002,-788.75380777,0.00015478,2]
[319294092,1710641469012,-847.29,0.00015479,2]
[319294093,1710641469022,-847.29,0.00015479,2]
[319294094,1710641469033,-847.29,0.00015479,2]
[319294095,1710641469043,-847.29,0.00015494,2]
[319294096,1710641469053,-847.29,0.00015494,2]
[319294097,1710641469063,-847.29,0.00015496,2]
[319294098,1710641469074,-847.29,0.00015496,2]
[319294099,1710641469084,-847.29,0.00015496,2]
[319294100,1710641469095,-847.29,0.00015496,2]
[319294101,1710641469104,-847.29,0.00015496,2]
[319294102,1710641469114,-5812.33610381,0.000155,2]
[319294103,1710641469300,-500.0,0.00015342,2]
[319294104,1710641469311,-507.55840587,0.00015342,2]
[319294105,1710641469323,-500.0,0.00015342,2]
[319294106,1710641469335,-500.0,0.00015342,2]
[319294107,1710641469347,-500.0,0.00015342,2]
[319294108,1710641469359,-500.0,0.00015342,2]
[319294109,1710641469371,-500.0,0.00015342,2]
[319294110,1710641469382,-504.28758275,0.00015342,2]
[319294111,1710641469394,-139.47201138,0.00015342,2]
[319294112,1710641469409,-413.60122988,0.00015342,2]
[319294113,1710641469419,-500.0,0.00015398,2]
[319294114,1710641469429,-500.0,0.00015477,2]
[319294115,1710641469439,-53.65521223,0.00015478,2]
[319294116,1710641469462,-150.97332357,0.000151,2]
[319294117,1710641469471,-4640.39513542,0.00015478,2]
[319294118,1710641469481,-500.0,0.00015478,2]
[319294119,1710641469492,-223.54849249,0.00015478,2]
[319294120,1710641469502,-500.0,0.00015479,2]
[319294121,1710641469512,-847.36459005,0.00015496,2]
[319294122,1710641469523,-12574.48285862,0.000155,2]
[319294123,1710641469544,-156.35080074,0.00015478,2]
[319294124,1710641469555,-26541.5588262,0.000155,2]
[319294125,1710641469623,-569.68,0.00015479,2]
[319294126,1710641469634,-27260.87584274,0.000155,2]
[319294127,1710641469650,-32172.7026233,0.000155,2]
[319294128,1710641489557,200.0,0.00015417,30]
[319294129,1710641489609,200.0,0.00015417,30]
[319294130,1710641489669,200.0,0.00015417,30]
[319294131,1710641489723,200.0,0.00015417,30]
[319294132,1710641489779,233.22602003,0.00015417,30]
[319294134,1710641516433,1162.4017,0.00011768,2]
[319294147,1710641914414,-155.0,0.00012609,2]
[319294148,1710641914441,-340.72393497,0.0001261,2]
[319294149,1710641914466,-155.0,0.00012611,2]
[319294150,1710641914489,-4720.47842768,0.00012611,2]
[319294151,1710641927135,-371.20236265,0.00012611,2]
[319294152,1710641932459,-124.52157232,0.00012611,2]
[319294153,1710641932980,246.68079033,0.00012111,2]
[319294154,1710641933003,339.01920967,0.00012111,2]
[319294155,1710642262086,500.92611417,0.000242,120]
[319294156,1710642440230,556.41,0.00011965,2]
[319294180,1710642632269,-155.0,0.00012997,2]
[319294181,1710642632278,-330.1620636,0.00012997,2]
[319294182,1710642632290,-488.68869,0.00012997,2]
[319294183,1710642632303,-613.78500015,0.00012997,2]
[319294184,1710642632315,-434.7,0.00012997,2]
[319294185,1710642632329,-395.6,0.00012997,2]
[319294186,1710642632340,-557.58999999,0.00012997,2]
[319294187,1710642632351,-759.75030221,0.00012997,2]
[319294188,1710642632385,-1635.9263067,0.00012997,2]
[319294189,1710642632396,-165.45956797,0.00012998,2]
[319294190,1710642632420,-1889.21405212,0.00012998,2]
[319294191,1710642632433,-3535.84907906,0.00012999,2]
[319294192,1710642632507,-255.74446782,0.00012999,2]
[319294213,1710642638177,-902.45680077,0.00012999,2]
[319294215,1710642638186,-392.29328522,0.00013,3]
[319294218,1710642638235,-57.70671478,0.00013,3]
[319294219,1710642638244,-607.23328522,0.00013,4]
[319294220,1710642638402,-186.07211926,0.00013,4]
[319294221,1710642638412,-355.99653942,0.0001355,2]
[319294222,1710642638421,-2950.4031,0.00013553,2]
[319294223,1710642638430,-1000.0,0.00013553,2]
[319294224,1710642638441,-852.16,0.00013697,2]
[319294225,1710642638451,-398.68,0.00013767,2]
[319294226,1710642638461,-818.23,0.0001381,2]
[319294227,1710642638470,-241.26,0.00013838,2]
[319294228,1710642638480,-184.8,0.00013876,2]
[319294229,1710642638489,-235.65,0.00013882,2]
[319294230,1710642638498,-250.0,0.0001391,2]
[319294231,1710642638507,-262.19,0.0001391,2]
[319294232,1710642638517,-250.0,0.00013942,2]
[319294233,1710642638526,-556.41,0.00014229,2]
[319294234,1710642638535,-357.37,0.00014314,2]
[319294235,1710642638544,-178.27,0.00014398,2]
[319294236,1710642638554,-178.27,0.00014398,2]
[319294237,1710642638563,-554.36423805,0.00014399,2]
[319294238,1710642638572,-406.10697296,0.00014546,2]
[319294239,1710642638581,-207.0,0.00014547,2]
[319294240,1710642638590,-208.0,0.00014575,2]
[319294241,1710642638599,-67310.4406,0.000149,2]
[319294242,1710642638608,-500.0,0.000149,2]
[319294243,1710642638617,-28688.9618,0.000149,2]
[319294244,1710642638627,-2500.0,0.000149,2]
[319294245,1710642638638,-172.06008879,0.000149,2]
[319294246,1710642638648,-419720.2351719,0.00015,2]
[319294247,1710642638658,-3500.0,0.00015,2]
[319294248,1710642638667,-5000.0,0.00015,2]
[319294249,1710642638677,-500.0,0.00015,2]
[319294250,1710642638686,-172.06008877,0.0001515,2]
[319294251,1710642638696,-3968.55965813,0.00015165,2]
[319294252,1710642638705,-10963.637,0.00015166,2]
[319294253,1710642638716,-1258.0,0.000152,2]
[319294254,1710642638725,-636.63767319,0.00015233,2]
[319294255,1710642638735,-636.63767313,0.00015233,2]
[319294256,1710642638744,-636.63767313,0.00015233,2]
[319294257,1710642638753,-636.63767313,0.00015233,2]
[319294258,1710642638762,-636.63767313,0.00015233,2]
[319294259,1710642638771,-636.63767313,0.00015233,2]
[319294260,1710642638780,-636.63767313,0.00015233,2]
[319294261,1710642638791,-5000.0,0.00015242,2]
[319294262,1710642638800,-1747.07816357,0.00015268,2]
[319294263,1710642638809,-636.63767313,0.00015289,2]
[319294264,1710642638818,-150.96906865,0.000153,2]
[319294265,1710642638828,-3612.0,0.000153,2]
[319294266,1710642638837,-235.907929,0.000153,2]
[319294267,1710642638846,-235.907929,0.000153,2]
[319294268,1710642638855,-235.907929,0.000153,2]
[319294269,1710642638864,-235.907929,0.000153,2]
[319294270,1710642638873,-235.907929,0.000153,2]
[319294271,1710642638882,-235.907929,0.000153,2]
[319294272,1710642638891,-235.907929,0.000153,2]
[319294273,1710642638900,-235.907929,0.000153,2]
[319294274,1710642638909,-235.907929,0.000153,2]
[319294275,1710642638918,-235.90792,0.000153,2]
[319294276,1710642638927,-1006.18159878,0.000153,2]
[319294277,1710642638936,-1006.18159878,0.000153,2]
[319294278,1710642638947,-1006.18159878,0.000153,2]
[319294279,1710642638957,-1006.18159878,0.000153,2]
[319294280,1710642638966,-1006.18159878,0.000153,2]
[319294281,1710642638976,-1006.18159878,0.000153,2]
[319294282,1710642638986,-1006.18159878,0.000153,2]
[319294283,1710642639002,-1006.18159878,0.000153,2]
[319294284,1710642639014,-1006.18159878,0.000153,2]
[319294285,1710642639024,-1006.18159878,0.000153,2]
[319294286,1710642639033,-1006.18159878,0.000153,2]
[319294287,1710642639042,-1006.18159878,0.000153,2]
[319294288,1710642639052,-1006.18159878,0.000153,2]
[319294289,1710642639061,-1006.18159878,0.000153,2]
[319294290,1710642639072,-1006.18159878,0.000153,2]
[319294291,1710642639082,-1006.18159878,0.000153,2]
[319294292,1710642639091,-1006.18159878,0.000153,2]
[319294293,1710642639101,-1006.18159878,0.000153,2]
[319294294,1710642639375,-1006.18159878,0.000153,2]
[319294295,1710642639385,-1006.18159878,0.000153,2]
[319294296,1710642639395,-1006.18159878,0.000153,2]
[319294297,1710642639404,-1006.18159878,0.000153,2]
[319294298,1710642639414,-1006.18159878,0.000153,2]
[319294299,1710642639423,-1006.18159878,0.000153,2]
[319294300,1710642639433,-1006.18159878,0.000153,2]
[319294301,1710642639443,-1006.18159878,0.000153,2]
[319294302,1710642639453,-1006.18159878,0.000153,2]
[319294303,1710642639463,-1006.18159878,0.000153,2]
[319294304,1710642639473,-1006.18159878,0.000153,2]
[319294305,1710642639483,-1006.18159878,0.000153,2]
[319294306,1710642639492,-11011.575,0.00015342,2]
[319294307,1710642639502,-500.0,0.00015342,2]
[319294308,1710642639511,-500.0,0.00015342,2]
[319294309,1710642639521,-500.0,0.00015342,2]
[319294310,1710642639530,-279.97022006,0.00015342,2]
[319294311,1710642639540,-500.77510382,0.00015342,2]
[319294312,1710642639550,-500.44790428,0.00015342,2]
[319294313,1710642639560,-502.12238321,0.00015342,2]
[319294314,1710642639570,-500.0,0.00015342,2]
[319294315,1710642639580,-500.0,0.00015342,2]
[319294316,1710642639590,-500.0,0.00015342,2]
[319294317,1710642639599,-500.0,0.00015342,2]
[319294318,1710642639609,-390.18012422,0.00015342,2]
[319294319,1710642639619,-500.0,0.00015342,2]
[319294320,1710642639628,-507.31956705,0.00015342,2]
[319294321,1710642639638,-500.0,0.00015342,2]
[319294322,1710642639650,-500.0,0.00015342,2]
[319294323,1710642639659,-500.0,0.00015342,2]
[319294324,1710642639669,-500.43568038,0.00015342,2]
[319294325,1710642639679,-500.7063023,0.00015342,2]
[319294326,1710642639688,-494.36010155,0.00015342,2]
[319294327,1710642639700,-500.62711602,0.00015342,2]
[319294328,1710642639709,-500.0,0.00015342,2]
[319294329,1710642639719,-500.0,0.00015342,2]
[319294330,1710642639728,-500.0,0.00015342,2]
[319294331,1710642639737,-500.0,0.00015342,2]
[319294332,1710642639747,-500.0,0.00015342,2]
[319294333,1710642639756,-500.0,0.00015342,2]
[319294334,1710642639766,-485.0,0.00015342,2]
[319294335,1710642639775,-1069.13,0.00015342,2]
[319294336,1710642639784,-1069.13,0.00015342,2]
[319294337,1710642639793,-1069.13,0.00015342,2]
[319294338,1710642639803,-1069.13,0.00015342,2]
[319294339,1710642639812,-1069.13,0.00015342,2]
[319294340,1710642639822,-1069.13,0.00015342,2]
[319294341,1710642639831,-1069.13,0.00015342,2]
[319294342,1710642639840,-1069.13,0.00015342,2]
[319294343,1710642639850,-1069.13,0.00015342,2]
[319294344,1710642639859,-1069.13,0.00015342,2]
[319294345,1710642639868,-1069.13,0.00015342,2]
[319294346,1710642639878,-1069.13,0.00015342,2]
[319294347,1710642639889,-1069.13,0.00015342,2]
[319294348,1710642639898,-180.977688,0.00015342,2]
[319294349,1710642639908,-636.63767313,0.00015344,2]
[319294350,1710642639918,-6661.33688508,0.0001535,2]
[319294351,1710642639927,-3000.0,0.0001535,2]
[319294352,1710642639937,-200.0,0.00015369,2]
[319294353,1710642639948,-800.0,0.00015369,2]
[319294354,1710642639958,-200.0,0.00015369,2]
[319294355,1710642639967,-500.0,0.00015369,2]
[319294356,1710642639978,-200.0,0.00015369,2]
[319294357,1710642639987,-9024.64785576,0.00015396,2]
[319294358,1710642639997,-9024.64785575,0.00015396,2]
[319294359,1710642640006,-9024.64785575,0.00015397,2]
[319294360,1710642640016,-681.12,0.00015397,2]
[319294361,1710642640025,-681.12,0.00015397,2]
[319294362,1710642640035,-681.12,0.00015397,2]
[319294363,1710642640044,-681.12,0.00015397,2]
[319294364,1710642640054,-994.44,0.00015397,2]
[319294365,1710642640063,-994.44,0.00015397,2]
[319294366,1710642640073,-500.0,0.00015397,2]
[319294367,1710642640082,-994.44,0.00015397,2]
[319294368,1710642640091,-500.0,0.00015397,2]
[319294369,1710642640100,-994.44,0.00015397,2]
[319294370,1710642640109,-500.0,0.00015397,2]
[319294371,1710642640119,-500.0,0.00015397,2]
[319294372,1710642640128,-500.0,0.00015397,2]
[319294373,1710642640137,-450.01106858,0.00015397,2]
[319294374,1710642640146,-500.0,0.00015397,2]
[319294375,1710642640155,-500.0,0.00015397,2]
[319294376,1710642640166,-500.0,0.00015397,2]
[319294377,1710642640174,-500.0,0.00015397,2]
[319294378,1710642640184,-500.0,0.00015397,2]
[319294379,1710642640195,-500.0,0.00015397,2]
[319294380,1710642640204,-500.0,0.00015397,2]
[319294381,1710642640213,-500.0,0.00015397,2]
[319294382,1710642640222,-501.93666821,0.00015397,2]
[319294383,1710642640231,-500.0,0.00015397,2]
[319294384,1710642640241,-500.0,0.00015397,2]
[319294385,1710642640250,-500.0,0.00015397,2]
[319294386,1710642640259,-500.0,0.00015397,2]
[319294387,1710642640268,-500.0,0.00015397,2]
[319294388,1710642640278,-500.0,0.00015397,2]
[319294389,1710642640287,-500.0,0.00015397,2]
[319294390,1710642640296,-500.0,0.00015397,2]
[319294391,1710642640305,-500.0,0.00015397,2]
[319294392,1710642640314,-605.4261481,0.00015397,2]
[319294393,1710642640323,-630.8,0.00015397,2]
[319294394,1710642640333,-630.8,0.00015397,2]
[319294395,1710642640343,-630.8,0.00015397,2]
[319294396,1710642640352,-630.8,0.00015397,2]
[319294397,1710642640362,-500.0,0.00015397,2]
[319294398,1710642640371,-500.0,0.00015397,2]
[319294399,1710642640381,-500.0,0.00015397,2]
[319294400,1710642640390,-500.0,0.00015397,2]
[319294401,1710642640399,-500.0,0.00015397,2]
[319294402,1710642640409,-500.0,0.00015397,2]
[319294403,1710642640418,-500.0,0.00015397,2]
[319294404,1710642640428,-500.0,0.00015397,2]
[319294405,1710642640438,-500.0,0.00015397,2]
[319294406,1710642640449,-500.0,0.00015397,2]
[319294407,1710642640458,-500.0,0.00015397,2]
[319294408,1710642640467,-500.0,0.00015397,2]
[319294409,1710642640476,-565.11418144,0.00015397,2]
[319294410,1710642640484,-242.54,0.00015397,2]
[319294411,1710642640493,-548.85790547,0.00015397,2]
[319294412,1710642640503,-500.0,0.00015397,2]
[319294413,1710642640513,-500.0,0.00015397,2]
[319294414,1710642640522,-500.0,0.00015397,2]
[319294415,1710642640532,-500.0,0.00015397,2]
[319294416,1710642640541,-500.0,0.00015397,2]
[319294417,1710642640552,-500.0,0.00015397,2]
[319294418,1710642640562,-282.2,0.00015397,2]
[319294419,1710642640572,-500.0,0.00015397,2]
[319294420,1710642640582,-221.62484652,0.00015397,2]
[319294421,1710642640591,-500.0,0.00015397,2]
[319294422,1710642640601,-500.0,0.00015397,2]
[319294423,1710642640611,-500.0,0.00015397,2]
[319294424,1710642640621,-500.0,0.00015397,2]
[319294425,1710642640630,-500.0,0.00015397,2]
[319294426,1710642640643,-500.0,0.00015397,2]
[319294427,1710642640653,-500.0,0.00015397,2]
[319294428,1710642640662,-500.0,0.00015397,2]
[319294429,1710642640671,-544.08,0.00015397,2]
[319294430,1710642640680,-544.08,0.00015397,2]
[319294431,1710642640690,-544.08,0.00015397,2]
[319294432,1710642640703,-544.08,0.00015397,2]
[319294433,1710642640712,-500.0,0.00015397,2]
[319294434,1710642640722,-500.0,0.00015397,2]
[319294435,1710642640731,-500.0,0.00015397,2]
[319294436,1710642640741,-500.0,0.00015397,2]
[319294437,1710642640750,-500.0,0.00015397,2]
[319294438,1710642640759,-500.0,0.00015397,2]
[319294439,1710642640769,-500.0,0.00015397,2]
[319294440,1710642640778,-590.46965597,0.00015397,2]
[319294441,1710642640788,-500.0,0.00015397,2]
[319294442,1710642640798,-500.0,0.00015397,2]
[319294443,1710642640808,-500.0,0.00015397,2]
[319294444,1710642640817,-500.0,0.00015397,2]
[319294445,1710642640827,-500.0,0.00015397,2]
[319294446,1710642640837,-500.0,0.00015397,2]
[319294447,1710642640846,-500.0,0.00015397,2]
[319294448,1710642640856,-500.0,0.00015397,2]
[319294449,1710642640865,-628.88,0.00015397,2]
[319294450,1710642640874,-500.0,0.00015397,2]
[319294451,1710642640883,-500.0,0.00015397,2]
[319294452,1710642640893,-500.0,0.00015397,2]
[319294453,1710642640902,-580.93,0.00015397,2]
[319294454,1710642640912,-500.0,0.00015397,2]
[319294455,1710642640922,-413.14,0.00015397,2]
[319294456,1710642640931,-500.0,0.00015397,2]
[319294457,1710642640945,-500.0,0.00015397,2]
[319294458,1710642640955,-500.0,0.00015397,2]
[319294459,1710642640964,-500.0,0.00015397,2]
[319294460,1710642640973,-635.79,0.00015397,2]
[319294461,1710642640982,-827.9,0.00015397,2]
[319294462,1710642640991,-635.79,0.00015397,2]
[319294463,1710642641000,-827.9,0.00015397,2]
[319294464,1710642641010,-635.79,0.00015397,2]
[319294465,1710642641019,-827.9,0.00015397,2]
[319294466,1710642641028,-635.79,0.00015397,2]
[319294467,1710642641038,-827.9,0.00015397,2]
[319294468,1710642641047,-500.0,0.00015397,2]
[319294469,1710642641056,-500.0,0.00015397,2]
[319294470,1710642641065,-500.0,0.00015397,2]
[319294471,1710642641074,-500.0,0.00015397,2]
[319294472,1710642641083,-500.0,0.00015397,2]
[319294473,1710642641093,-500.0,0.00015397,2]
[319294474,1710642641102,-574.89129515,0.00015397,2]
[319294475,1710642641111,-165.14069299,0.00015397,2]
[319294476,1710642641120,-2646.79,0.00015397,2]
[319294477,1710642641129,-2646.79,0.00015397,2]
[319294478,1710642641138,-521.78759123,0.00015397,2]
[319294479,1710642641148,-2646.79,0.00015397,2]
[319294480,1710642641158,-2646.79,0.00015397,2]
[319294481,1710642641167,-500.0,0.00015397,2]
[319294482,1710642641176,-500.0,0.00015397,2]
[319294483,1710642641185,-500.0,0.00015397,2]
[319294484,1710642641196,-500.0,0.00015397,2]
[319294485,1710642641206,-348.17429205,0.00015397,2]
[319294486,1710642641216,-4953.72,0.00015397,2]
[319294487,1710642641225,-4953.72,0.00015397,2]
[319294488,1710642641234,-4953.72,0.00015397,2]
[319294489,1710642641244,-4953.72,0.00015397,2]
[319294490,1710642641253,-536.33177667,0.00015397,2]
[319294491,1710642641262,-500.0,0.00015397,2]
[319294492,1710642641270,-500.0,0.00015397,2]
[319294493,1710642641280,-500.0,0.00015397,2]
[319294494,1710642641289,-500.0,0.00015397,2]
[319294495,1710642641298,-500.0,0.00015397,2]
[319294496,1710642641307,-500.0,0.00015397,2]
[319294497,1710642641316,-500.0,0.00015397,2]
[319294498,1710642641326,-500.0,0.00015397,2]
[319294499,1710642641335,-500.0,0.00015397,2]
[319294500,1710642641344,-1890.61,0.00015397,2]
[319294501,1710642641354,-1890.61,0.00015397,2]
[319294502,1710642641363,-1890.61,0.00015397,2]
[319294503,1710642641372,-1890.61,0.00015397,2]
[319294504,1710642641382,-1587.31,0.00015397,2]
[319294505,1710642641391,-1587.31,0.00015397,2]
[319294506,1710642641400,-1587.31,0.00015397,2]
[319294507,1710642641409,-1587.31,0.00015397,2]
[319294508,1710642641429,-549.99536804,0.00015397,2]
[319294509,1710642641438,-478.70581605,0.00015397,2]
[319294510,1710642641449,-500.0,0.00015397,2]
[319294511,1710642641459,-500.0,0.00015397,2]
[319294512,1710642641468,-500.0,0.00015397,2]
[319294513,1710642641477,-500.0,0.00015397,2]
[319294514,1710642641486,-500.0,0.00015397,2]
[319294515,1710642641496,-1236.7,0.00015397,2]
[319294516,1710642641506,-1236.7,0.00015397,2]
[319294517,1710642641516,-932.78,0.00015397,2]
[319294518,1710642641525,-249.23768682,0.00015397,2]
[319294519,1710642641534,-1236.7,0.00015397,2]
[319294520,1710642641544,-932.78,0.00015397,2]
[319294521,1710642641553,-1236.7,0.00015397,2]
[319294522,1710642641563,-932.78,0.00015397,2]
[319294523,1710642641572,-932.78,0.00015397,2]